Cogmind - Beta 10.2 @@@ ROGUE MODE // 2021.12.23 @ 13:43:36 Player: zazuza Result: Self-destructed Performance ------------- Evolutions (2) 1000 Regions Visited (4) 800 Robots Destroyed (2) 10 Value Destroyed (20) 20 Prototype IDs (0) 0 Alien Tech Used (0) 0 Bonus (0) 0 TOTAL SCORE: 1830 Bonus ------- None Cogmind --------- Core Integrity 550/550 Matter 285/300 Energy 125/125 System Corruption 0% Temperature Cool (0) Movement Flying (40) Location -8/Materials Parts ------- > --- POWER (3) -------- Light Ion Engine > --- PROPULSION (4) --- Flight Unit > --- UTILITY (2) ------ (None) > --- WEAPON (2) ------- (None) > --- INVENTORY (4) ---- Light Ion Engine Light Ion Engine Blade Trap Blade Trap Peak State ------------ > --- POWER ------------ Light Ion Engine > --- PROPULSION ------- Flight Unit Flight Unit > --- UTILITY ---------- (None) > --- WEAPON ----------- Light Assault Rifle > --- INVENTORY -------- Light Ion Engine Light Ion Engine [Rating: 4] Favorites ----------- Power Light Ion Engine Engine Light Ion Engine Propulsion Flight Unit Flight Unit Flight Unit Utility None Weapon Light Assault Rifle Energy Gun Small Laser Ballistic Gun Light Assault Rifle Build | -11 -10 -9 -9 -8 ------- Run | Scr Mat Mat Min Mat Slots Evolved 4 | . . 2 . 2 Power 2 | . . 1 . 1 Propulsion 2 | . . 1 . 1 Utility . | . . . . . Weapon . | . . . . . Parts Attached 6 | 1 4 . 1 . Power 2 | . 1 . 1 . Engine 2 | . 1 . 1 . Core . | . . . . . Reactor . | . . . . . Propulsion 2 | . 2 . . . Treads . | . . . . . Leg . | . . . . . Wheel . | . . . . . Hover . | . . . . . Flight 2 | . 2 . . . Utility . | . . . . . Device . | . . . . . Storage . | . . . . . Processor . | . . . . . Hackware . | . . . . . Protection . | . . . . . Artifact . | . . . . . Weapon 2 | 1 1 . . . Energy Gun 1 | 1 . . . . Energy Cannon . | . . . . . Ballistic Gun 1 | . 1 . . . Ballistic Cannon . | . . . . . Launcher . | . . . . . Special Weapon . | . . . . . Impact Weapon . | . . . . . Slashing Weapon . | . . . . . Piercing Weapon . | . . . . . Special Melee Weapon . | . . . . . Unidentified Prototypes . | . . . . . Parts Lost 3 | . 1 1 1 . Power 1 | . . . 1 . Propulsion 1 | . . 1 . . Utility . | . . . . . Weapon 1 | . 1 . . . Highest Loss Streak 1 | . 1 1 1 . Average Slot Usage (%) 23 | . 16 38 22 . Engine 8 | . 2 11 11 . Flight 10 | . 2 22 11 . Energy Gun 2 | . 6 . . . Ballistic Gun 3 | . 6 5 . . Naked Turns 10 | . 10 . . . Heaviest Build 4 | 1 4 4 3 . Greatest Support 8 | 3 8 8 4 . Greatest Overweight (x) 1 | . 1 . . . Average Overweight (x) . | . . . . . Largest Inventory Capacity 4 | 4 4 4 4 . Average Capacity 4 | 4 4 4 4 . Most Carried 4 | 2 3 3 4 . Average Carried 2 | 1 2 3 2 . Final Capacity 4 | 4 4 4 4 4 Final Carried 4 | 2 3 3 4 4 Class Distribution -------------------- 74% | Mutant 25% | Scavenger-Mutant Dominant Class ---------------- Mutant | -10/Materials Mutant | -9/Materials Mutant | -9/Mines Mutant | -8/Materials Resources | -11 -10 -9 -9 -8 ----------- Run | Scr Mat Mat Min Mat Matter Collected 199 | 153 20 . 26 . Remotely . | . . . . . Salvage Created 40 | . 40 . . . Parts 4 | . 4 . . . Haulers Intercepted . | . . . . . Recyclers Shooed . | . . . . . Parts Field Recycled . | . . . . . Retrieved Matter . | . . . . . Parts Self-Destructed . | . . . . . Prevented . | . . . . . Kills | -11 -10 -9 -9 -8 ------- Run | Scr Mat Mat Min Mat Combat Hostiles Destroyed 2 | . 2 . . . Melee 2 | . 2 . . . Classes Destroyed 1 | . 1 . . . Swarmer 2 | . 2 . . . Best Kill Streak 2 | . 2 . . . Combat Bots Only 2 | . 2 . . . Max Kills in Single Turn 1 | . 1 . . . Gunslinging . | . . . . . Exploded . | . . . . . Melee 1 | . 1 . . . Uniques/NPCs Destroyed . | . . . . . Combat | -11 -10 -9 -9 -8 -------- Run | Scr Mat Mat Min Mat Damage Taken 343 | . 249 32 62 . Core 165 | . 154 . 11 . Absorbed by Shields . | . . . . . Core Remaining (%) 78 | 100 38 . 97 . Volleys Fired 7 | . 7 . . . Largest 1 | . 1 . . . Hottest 40 | . 40 . . . Shots Fired 7 | . 7 . . . Gun 7 | . 7 . . . Cannon . | . . . . . Launcher . | . . . . . Special . | . . . . . Kinetic 6 | . 6 . . . Thermal 1 | . 1 . . . Explosive . | . . . . . Electromagnetic . | . . . . . Robot Hit Streak 2 | . 2 . . . Robot Miss Streak 1 | . 1 . . . Penetration Max . | . . . . . Secondary Targets . | . . . . . Shots Hit Robots 4 | . 4 . . . Core Hits 6 | . 6 . . . Critical Hits . | . . . . . Critical Kills . | . . . . . Critical Parts Destroyed . | . . . . . Melee Attacks . | . . . . . Impact . | . . . . . Slashing . | . . . . . Piercing . | . . . . . Sneak Attacks . | . . . . . Combat Hostiles . | . . . . . Follow-up Attacks . | . . . . . Damage Inflicted 87 | . 87 . . . Guns 44 | . 44 . . . Cannons . | . . . . . Explosions . | . . . . . Melee . | . . . . . Ramming 43 | . 43 . . . Kinetic 33 | . 33 . . . Thermal 11 | . 11 . . . Explosive . | . . . . . Electromagnetic . | . . . . . Impact . | . . . . . Slashing . | . . . . . Piercing . | . . . . . Highest Corruption . | . . . . . Average Corruption . | . . . . . Corruption Purged . | . . . . . Overload Shots . | . . . . . Overflow Damage . | . . . . . Projectiles . | . . . . . Explosions . | . . . . . Melee . | . . . . . Knockbacks . | . . . . . Impact . | . . . . . Kinetic . | . . . . . Secondary . | . . . . . Self-Inflicted Damage 18 | . 18 . . . Shots . | . . . . . Rammed 13 | . 13 . . . Targets Rammed 13 | . 13 . . . Kicked . | . . . . . Crushed . | . . . . . Highest Temperature . | . . . . . Average Temperature . | . . . . . Received Heat Transfer 90 | . 48 9 33 . Siege Activations . | . . . . . Robots Corrupted . | . . . . . Combat Hostiles . | . . . . . Parts Fried . | . . . . . Impact Corruptions . | . . . . . Robots Melted . | . . . . . Combat Hostiles . | . . . . . Parts Melted . | . . . . . Heat Transferred 25 | . 25 . . . Parts Sabotaged . | . . . . . Parts Stolen . | . . . . . Parts Stripped . | . . . . . Power Chain Reactions . | . . . . . Missiles Intercepted . | . . . . . Alert | -11 -10 -9 -9 -8 ------- Run | Scr Mat Mat Min Mat Peak Influence 62 | . 50 62 54 . Initial 24 | . . 20 24 16 Average 31 | . 25 33 39 . Maximum Alert Level . | . . . . . Low Security (%) 100 | 100 100 100 100 . Level 1 . | . . . . . Level 2 . | . . . . . Level 3 . | . . . . . Level 4 . | . . . . . Level 5 . | . . . . . High Security . | . . . . . Max Security . | . . . . . Squads Dispatched 3 | . . 3 . . Investigation 2 | . . 2 . . Extermination . | . . . . . Reinforcement 1 | . . 1 . . Assault . | . . . . . Garrison . | . . . . . Intercept . | . . . . . Construction Impeded . | . . . . . Haulers Reinforced . | . . . . . Stealth | -11 -10 -9 -9 -8 --------- Run | Scr Mat Mat Min Mat Distress Signals 4 | . 1 3 . . Communications Jammed . | . . . . . Distress Signals . | . . . . . Times Spotted 16 | . 5 7 4 . Peak Tracking Total 9 | . 5 9 2 . Tactical Retreats 1 | . . . 1 . Traps | -11 -10 -9 -9 -8 ------- Run | Scr Mat Mat Min Mat Traps Triggered . | . . . . . Indirectly . | . . . . . Trap Hack Attempts . | . . . . . Triggered . | . . . . . Disarmed . | . . . . . Reprogrammed . | . . . . . Reused . | . . . . . Traps Extracted . | . . . . . Installed . | . . . . . Triggered . | . . . . . Machines | -11 -10 -9 -9 -8 ---------- Run | Scr Mat Mat Min Mat Machines Disabled . | . . . . . Max in Single Turn . | . . . . . Machines Sabotaged . | . . . . . Garrisons Compromised . | . . . . . Overloaded Fab Kills . | . . . . . Fab Network Shutdowns . | . . . . . Hacking | -11 -10 -9 -9 -8 --------- Run | Scr Mat Mat Min Mat Machines Accessed 3 | . 1 2 . . Terminals 3 | . 1 2 . . Fabricators . | . . . . . Repair Stations . | . . . . . Recycling Units . | . . . . . Scanalyzers . | . . . . . Garrison Access . | . . . . . Total Hacks 11 | . 3 8 . . Successful 5 | . 1 4 . . Failed 6 | . 2 4 . . Catastrophic 3 | . 1 2 . . Database Lockouts . | . . . . . Manual 4 | . 2 2 . . Terminals 11 | . 3 8 . . Fabricators . | . . . . . Repair Stations . | . . . . . Recycling Units . | . . . . . Scanalyzers . | . . . . . Garrison Access . | . . . . . Terminal Hacks 5 | . 1 4 . . Branch Access Points 1 | . . 1 . . Locate Traps 2 | . . 2 . . Zone Layout 2 | . 1 1 . . Fabricator Hacks . | . . . . . Repair Station Hacks . | . . . . . Recycling Unit Hacks . | . . . . . Scanalyzer . | . . . . . Garrison Access Hacks . | . . . . . Unauthorized Hacks . | . . . . . Terminals . | . . . . . Fabricators . | . . . . . Repair Stations . | . . . . . Recycling Units . | . . . . . Scanalyzers . | . . . . . Garrison Access . | . . . . . Data Cores Recovered . | . . . . . Used . | . . . . . Hacking Detections 3 | . 1 2 . . Full Trace Events 3 | . 1 2 . . Feedback Events . | . . . . . Feedback Blocked . | . . . . . Robot Schematics Acquired . | . . . . . Robots Built . | . . . . . Matter . | . . . . . Time . | . . . . . Total Robot Build Rating . | . . . . . Part Schematics Acquired . | . . . . . Parts Built . | . . . . . Matter . | . . . . . Time . | . . . . . Total Part Build Rating . | . . . . . Parts Repaired . | . . . . . Time . | . . . . . Parts Recycled . | . . . . . Recycled Matter . | . . . . . Retrieved Matter . | . . . . . Retrieved Components . | . . . . . Parts Scanalyzed . | . . . . . Part Schematics Acquired . | . . . . . Parts Damaged . | . . . . . Bothacking | -11 -10 -9 -9 -8 ------------ Run | Scr Mat Mat Min Mat Used RIF Installer . | . . . . . Robots Hacked . | . . . . . Non-combat . | . . . . . Combat . | . . . . . Robot Hacks Applied . | . . . . . Relay Couplers Released . | . . . . . Robots Rewired . | . . . . . Allies Hacked . | . . . . . Hacks Repelled . | . . . . . Allies | -11 -10 -9 -9 -8 -------- Run | Scr Mat Mat Min Mat Total Allies . | . . . . . Largest Group . | . . . . . Highest-Rated Group . | . . . . . Highest-Rated Ally . | . . . . . Total Orders . | . . . . . Ally Attacks . | . . . . . Total Damage . | . . . . . Kills . | . . . . . Allies Corrupted . | . . . . . Allies Melted . | . . . . . Intel | -11 -10 -9 -9 -8 ------- Run | Scr Mat Mat Min Mat Robot Analysis Total . | . . . . . Derelict Logs Recovered 1 | . . . 1 . Drone Launches . | . . . . . Drone Recoveries . | . . . . . Exploration | -11 -10 -9 -9 -8 ------------- Run | Scr Mat Mat Min Mat Turns Passed 228 | 14 73 39 102 . Spaces Moved 449 | 22 77 103 247 . Core 83 | 22 61 . . . Treads . | . . . . . Legs . | . . . . . Wheels . | . . . . . Hover . | . . . . . Flight 366 | . 16 103 247 . Fastest Speed 37 | 50 37 37 40 . Average Speed 41 | 50 48 37 40 . Slowest Speed 100 | 50 100 40 40 . Overloaded Moves . | . . . . . Propulsion Burnouts . | . . . . . Robots Hopped 6 | . 3 1 2 . Cave-ins Triggered . | . . . . . Exploration Rate (%) 26 | 4 29 23 77 1 Regions Visited 4 Branch Regions 1 Pre-discovered Areas 1 | . . . 1 . Known Exits Taken 1 | . . 1 . . Unknown Exits Taken 3 | 1 1 . 1 . Scrap Searched 1 | . . . 1 . Spaces Dug . | . . . . . Terrain Destroyed . | . . . . . Melee . | . . . . . Projectile . | . . . . . AOE . | . . . . . Terrain Rammed . | . . . . . Walls Destroyed . | . . . . . Machines Disabled . | . . . . . Actions | -11 -10 -9 -9 -8 --------- Run | Scr Mat Mat Min Mat Total 475 | 24 102 102 247 . Wait 2 | . 2 . . . Move 433 | 21 70 100 242 . Hop 6 | . 3 1 2 . Pick Up 6 | 2 2 . 2 . Fast Attach 5 | 1 4 . . . Attach 1 | . . . 1 . Detach . | . . . . . Swap . | . . . . . Drop 2 | . 1 1 . . Fire 7 | . 7 . . . Melee . | . . . . . Ram 13 | . 13 . . . Kick . | . . . . . Crush . | . . . . . Escape Stasis . | . . . . . Rewire . | . . . . . Trap . | . . . . . Miscellaneous . | . . . . . Route ------- -11/Scrapyard -10/Materials -9/Materials (discovered 2 exits: *Min x2) -9/Mines (discovered 2 exits: [*Mat x2]) -8/Materials History --------- Turn | Location | Event 2 | -11/Scrapyard | Met Revision 17 8 | -11/Scrapyard | Discovered new exit (range 15) 15 | -11/Scrapyard | Entered Materials 72 | -10/Materials | Core integrity fell below 50% 87 | -10/Materials | Discovered new exit (range 6) 88 | -10/Materials | Entered another Materials area 88 | -9/Materials | Evolved 2 slots: Power x1, Propulsion x1 110 | -9/Materials | Identified exit to Mines 127 | -9/Materials | Entered Mines 220 | -9/Mines | Found a hidden stash of uninstalled traps 225 | -9/Mines | Discovered new exit (range 12) 227 | -9/Mines | Discovered new exit (range 15) 229 | -9/Mines | Entered Materials 229 | -8/Materials | Evolved 2 slots: Power x1, Propulsion x1 229 | -8/Materials | Self-destructed Last Messages --------------- World map updated: -9/Materials. 00142_ K-01 Serf collects debris. 00166_ Searching scrap... 00166_ Found 24 Matter. 00166_ Found Datajack. 00166_ Found Targeting Computer. 00166_ Found Utility Shielding. 00166_ Found 26 Matter. 00167_ Acquired 26 matter. 00167_ K-01 Serf collects debris. 00191_ K-01 Serf cleans the Seismic Survey Station. 00197_ K-01 Serf collects debris. 00205_ Lgt. Ion Engine destroyed. 00206_ K-01 Serf collects debris. 00220_ A stash of uninstalled traps is collected here! 00221_ Acquired Blade Trap. 00225_ EXIT=FOUND PARAMETERS=POWER_1,PROPULSION_1 LOCATION=UNKNOWN GOAL=ESCAPE Map ----- +----------------------------------------------------+ | | | | | | | | | | | | | | | | | | | | | | | ?????????????????????????????????????????????????? | | ?????????????????????????????????????????????????? | | ?????????????????????????????????????????????????? | | ?????????????????????????????????????????????????? | | ?????????????????????????????????????????????????? | | ?????????????????????????????????????????????????? | | ?????????????????????????????????????????????????? | | ?????????????????????????????????????????????????? | | ?????????????????????????????????????????????????? | | ?????????????????????????????????????????????????? | | ?????????????????????????????????????????????????? | | ?????????????????????????????????????????????????? | | ???????????????????????#####?????????????????????? | | ???????????????????????# #?????????????????????? | | ???????????????????????# @ #?????????????????????? | | ???????????????????????# #?????????????????????? | | ???????????????????????+ #?????????????????????? | | ???????????????????????# #?????????????????????? | | ???????????????????????# #?????????????????????? | | ???????????????????????# #?????????????????????? | | ???????????????????????# #?????????????????????? | | ???????????????????????# #?????????????????????? | | ???????????????????????# #?????????????????????? | | ???????????????????????# +?????????????????????? | | ???????????????????????# #?????????????????????? | | ???????????????????????# #?????????????????????? | | ???????????????????????# #?????????????????????? | | ???????????????????????? ??????????????????????? | | ???????????????????????? ??????????????????????? | | ???????????????????????? ??????????????????????? | | ?????????????????????????????????????????????????? | | ?????????????????????????????????????????????????? | | ?????????????????????????????????????????????????? | | ?????????????????????????????????????????????????? | | ?????????????????????????????????????????????????? | | ?????????????????????????????????????????????????? | | ?????????????????????????????????????????????????? | | ?????????????????????????????????????????????????? | | ?????????????????????????????????????????????????? | +----------------------------------------------------+ Best States ------------- Heat Dissipation 28 Energy Generation 10 Energy Capacity 125 Matter Stores 290 Matter Capacity 300 Sight Range 16 Terrain Scan Density 10 Evasion (%) 62 Item Schematics ----------------- None Robot Schematics ------------------ None Fabricated ------------ Nothing Alien Tech Used ----------------- None Achievements -------------- None Challenges ------------ None Game ------ Seed GravitonBeamStorage Manual? 0 Play Time 00:08:45 Cumulative 70.5 hours Start 2021.12.23 @ 13:34:00 End 2021.12.23 @ 13:43:36 Sessions 1 Manual Loads 0 Difficulty Rogue Special Mode None Game No. 18 Rogue 18 Adventurer 0 Explorer 0 Win Type - Total 0 Types 0/0/0/0/0/0/0/0/0 Lore% 32 Gallery% 42 Achievement% 35 Wizard Run 0 Options --------- ASCII 0 Keyboard 0 Movement Mouse Keybinds 0 Fullscreen 1 Font 18/Terminus Map View 76x50 Tactical HUD 1 Map Filters NONE Filters NONE Steam 1 RUN: 38eac02a-b091-48cb-9bc3-e0bee069aafa